fUSD/lending_fUSD_20250814
["ID","MTS","AMOUNT","RATE_DAILY","PERIOD"]
[379128873,1755151974386,-400.0,0.0005726,120]
[379128874,1755151974397,-2854.6,0.0005726,120]
[379128875,1755151974407,-4023.71,0.0005726,120]
[379128876,1755151974418,-2219.19,0.0005726,120]
[379128877,1755151974429,-3720.23,0.0005726,120]
[379128878,1755151974439,-400.0,0.0005726,120]
[379128879,1755151974449,-1409.35,0.0005726,120]
[379128880,1755151974460,-1179.74,0.0005726,120]
[379128881,1755151974470,-400.0,0.0005726,120]
[379128882,1755151974481,-7528.34,0.0005726,120]
[379128883,1755151974490,-740.61,0.0005726,120]
[379128884,1755151974500,-400.0,0.0005726,120]
[379128885,1755151974510,-855.78,0.0005726,120]
[379128886,1755151974520,-9039.56,0.0005726,120]
[379128887,1755151974531,-1358.25,0.0005726,120]
[379128888,1755151974540,-1286.15,0.0005726,120]
[379128889,1755151974550,-913.18,0.0005726,120]
[379128890,1755151974560,-1126.28,0.0005726,120]
[379128891,1755151974571,-5267.57,0.0005726,120]
[379128892,1755151974581,-873.98,0.0005726,120]
[379128893,1755151974590,-6302.06,0.0005726,120]
[379128894,1755151974600,-400.0,0.0005726,120]
[379128895,1755151974610,-2196.88,0.0005726,120]
[379128896,1755151974619,-5741.44,0.0005726,120]
[379128897,1755151974628,-400.0,0.0005726,120]
[379128898,1755151974638,-836.31,0.0005726,120]
[379128899,1755151974647,-1080.9,0.0005726,120]
[379128900,1755151974657,-400.0,0.0005726,120]
[379128901,1755151974667,-400.0,0.0005726,120]
[379128902,1755151974676,-400.0,0.0005726,120]
[379128903,1755151974686,-846.29,0.0005726,120]
[379128904,1755151974695,-772.3,0.0005726,120]
[379128905,1755151974706,-483.77,0.0005726,120]
[379128906,1755151974716,-940.13,0.0005726,120]
[379128907,1755151974726,-8713.58,0.0005726,120]
[379128908,1755151974736,-3151.1,0.0005726,120]
[379128909,1755151974745,-400.0,0.0005726,120]
[379128910,1755151974755,-4985.52,0.0005726,120]
[379128911,1755151974765,-1236.08,0.0005726,120]
[379128912,1755151974774,-3542.43,0.0005726,120]
[379128913,1755151974783,-400.0,0.0005726,120]
[379128914,1755151974793,-1557.15,0.0005726,120]
[379128915,1755151974803,-2296.43,0.0005726,120]
[379128916,1755151974814,-3080.17,0.0005726,120]
[379128917,1755151974823,-498.83,0.0005726,120]
[379128918,1755151974833,-612.63,0.0005726,120]
[379128919,1755151974843,-400.0,0.0005726,120]
[379128920,1755151974853,-400.0,0.0005726,120]
[379128921,1755151974863,-473.74,0.0005726,120]
[379128922,1755151974873,-1247.56,0.0005726,120]
[379128923,1755151974882,-1088.15,0.0005726,120]
[379128924,1755151974892,-1104.52,0.0005726,120]
[379128925,1755151974902,-400.0,0.0005726,120]
[379128926,1755151974912,-349.48322606,0.0005726,120]
[379128927,1755151974922,-3479.82,0.0005726,120]
[379128928,1755151974931,-400.0,0.0005726,120]
[379128929,1755151974942,-7460.0,0.0005726,120]
[379128930,1755151974952,-3149.61,0.0005726,120]
[379128931,1755151974965,-872.46,0.0005726,120]
[379128932,1755151974975,-1829.41,0.0005726,120]
[379128933,1755151974984,-400.0,0.0005726,120]
[379128934,1755151974995,-978.49,0.0005726,120]
[379128935,1755151975005,-400.0,0.0005726,120]
[379128936,1755151975015,-4232.69,0.0005726,120]
[379128937,1755151975024,-400.0,0.0005726,120]
[379128938,1755151975035,-9167.46,0.0005726,120]
[379128939,1755151975046,-36657.61,0.0005726,120]
[379128940,1755151975056,-599.72,0.0005726,120]
[379128941,1755151975066,-839.46,0.0005726,120]
[379128942,1755151975077,-10290.85,0.0005726,120]
[379128943,1755151975087,-400.0,0.0005726,120]
[379128944,1755151975097,-400.0,0.0005726,120]
[379128945,1755151975107,-4451.7,0.0005726,120]
[379128946,1755151975117,-4656.17,0.0005726,120]
[379128947,1755151975127,-826.42,0.0005726,120]
[379128948,1755151975137,-400.0,0.0005726,120]
[379128949,1755151975147,-1396.12,0.0005726,120]
[379128950,1755151975156,-2472.59,0.0005726,120]
[379128951,1755151975167,-400.0,0.0005726,120]
[379128952,1755151975177,-2111.39,0.0005726,120]
[379128953,1755151975186,-400.0,0.0005726,120]
[379128954,1755151975196,-1153.14,0.0005726,120]
[379128955,1755151975207,-1112.52,0.0005726,120]
[379128956,1755151975217,-6686.12,0.0005726,120]
[379128957,1755151975227,-1656.84,0.0005726,120]
[379128958,1755151975237,-400.0,0.0005726,120]
[379128959,1755151975247,-2300.04,0.0005726,120]
[379128960,1755151975258,-2436.12,0.0005726,120]
[379128961,1755151975268,-400.0,0.0005726,120]
[379128962,1755151975277,-7538.62,0.0005726,120]
[379128963,1755151975287,-400.0,0.0005726,120]
[379128964,1755151975296,-2547.79,0.0005726,120]
[379128965,1755151975305,-400.0,0.0005726,120]
[379128966,1755151975315,-400.0,0.0005726,120]
[379128967,1755151975325,-415.59,0.0005726,120]
[379128968,1755151975335,-648.82,0.0005726,120]
[379128969,1755151975345,-10426.92,0.0005726,120]
[379128970,1755151975355,-1591.41,0.0005726,120]
[379128971,1755151975365,-2059.51,0.0005726,120]
[379128972,1755151975375,-1170.56,0.0005726,120]
[379128973,1755151975384,-2784.28,0.0005726,120]
[379128974,1755151975394,-424.82926446,0.0005726,120]
[379128975,1755151975404,-751.77,0.0005726,120]
[379128976,1755151975415,-400.0,0.0005726,120]
[379128977,1755151975425,-2489.1,0.0005726,120]
[379128978,1755151975434,-2948.39,0.0005726,120]
[379128979,1755151975444,-400.0,0.0005726,120]
[379128980,1755151975453,-400.0,0.0005726,120]
[379128981,1755151975462,-5409.12,0.0005726,120]
[379128982,1755151975473,-504.98,0.0005726,120]
[379128983,1755151975483,-17310.16,0.0005726,120]
[379128984,1755151975492,-400.0,0.0005726,120]
[379128985,1755151975502,-4114.42,0.0005726,120]
[379128986,1755151975512,-1068.05,0.0005726,120]
[379128987,1755151975522,-452.51,0.0005726,120]
[379128988,1755151975532,-3860.16,0.0005726,120]
[379128989,1755151975542,-475.06,0.0005726,120]
[379128990,1755151975553,-2715.86,0.0005726,120]
[379128991,1755151975562,-13525.35,0.0005726,120]
[379128992,1755151975571,-400.0,0.0005726,120]
[379128993,1755151975581,-400.0,0.0005726,120]
[379128994,1755151975590,-2573.06,0.0005726,120]
[379128995,1755151975598,-752.1,0.0005726,120]
[379128996,1755151975608,-650.15,0.0005726,120]
[379128997,1755151975618,-400.0,0.0005726,120]
[379128998,1755151975627,-1926.39,0.0005726,120]
[379128999,1755151975637,-400.0,0.0005726,120]
[379129000,1755151975646,-8342.38,0.0005726,120]
[379129001,1755151975656,-4423.6,0.0005726,120]
[379129002,1755151975667,-4528.84,0.0005726,120]
[379129003,1755151975676,-5780.73,0.0005726,120]
[379129004,1755151975687,-400.0,0.0005726,120]
[379129005,1755151975696,-790.78,0.0005726,120]
[379129006,1755151975706,-599.61,0.0005726,120]
[379129007,1755151975715,-3920.94,0.0005726,120]
[379129008,1755151975724,-818.74,0.0005726,120]
[379129009,1755151975734,-400.0,0.0005726,120]
[379129010,1755151975743,-400.0,0.0005726,120]
[379129011,1755151975753,-694.14,0.0005726,120]
[379129012,1755151975763,-9441.11,0.0005726,120]
[379129013,1755151975772,-400.0,0.0005726,120]
[379129014,1755151975782,-6783.59,0.0005726,120]
[379129015,1755151975791,-872.63,0.0005726,120]
[379129016,1755151975801,-6420.84,0.0005726,120]
[379129017,1755151975810,-5331.19,0.0005726,120]
[379129018,1755151975819,-2010.65,0.0005726,120]
[379129019,1755151975828,-2498.36,0.0005726,120]
[379129020,1755151975837,-811.64,0.0005726,120]
[379129021,1755151975847,-400.0,0.0005726,120]
[379129022,1755151975857,-400.0,0.0005726,120]
[379129023,1755151975867,-9168.28,0.0005726,120]
[379129024,1755151975876,-173.65577647,0.0005726,120]
[379129025,1755151975886,-2948.12,0.0005726,120]
[379129026,1755151975895,-400.0,0.0005726,120]
[379129027,1755151975904,-7070.73,0.0005726,120]
[379129028,1755151975916,-2842.56,0.0005726,120]
[379129029,1755151975926,-736.79,0.0005726,120]
[379129030,1755151975936,-1711.42,0.0005726,120]
[379129031,1755151975946,-874.09,0.0005726,120]
[379129032,1755151975956,-2202.55,0.0005726,120]
[379129033,1755151975967,-1097.51,0.0005726,120]
[379129034,1755151975976,-400.0,0.0005726,120]
[379129035,1755151975985,-992.79,0.0005726,120]
[379129036,1755151975996,-3921.73,0.0005726,120]
[379129037,1755151976006,-4466.45,0.0005726,120]
[379129038,1755151976015,-4360.7,0.0005726,120]
[379129039,1755151976024,-2674.86,0.0005726,120]
[379129040,1755151976036,-8858.01,0.0005726,120]
[379129041,1755151976046,-400.0,0.0005726,120]
[379129042,1755151976055,-5381.35,0.0005726,120]
[379129043,1755151976065,-400.0,0.0005726,120]
[379129044,1755151976075,-400.0,0.0005726,120]
[379129045,1755151976084,-7710.14,0.0005726,120]
[379129046,1755151976093,-7523.38,0.0005726,120]
[379129047,1755151976102,-389.92840596,0.0005726,120]
[379129048,1755151976112,-1401.96,0.0005726,120]
[379129049,1755151976122,-400.0,0.0005726,120]
[379129050,1755151976132,-400.0,0.0005726,120]
[379129051,1755151976141,-3793.94,0.0005726,120]
[379129052,1755151976152,-400.0,0.0005726,120]
[379129053,1755151976161,-1647.39,0.0005726,120]
[379129054,1755151976174,-2318.14,0.0005726,120]
[379129055,1755151976184,-833.51,0.0005726,120]
[379129056,1755151976194,-1000.47,0.0005726,120]
[379129057,1755151976204,-549.79,0.0005726,120]
[379129058,1755151976214,-501.83,0.0005726,120]
[379129059,1755151976224,-533.39030289,0.0005726,120]
[379129060,1755151976234,-2174.89,0.0005726,120]
[379129061,1755151976244,-2585.46,0.0005726,120]
[379129062,1755151976254,-400.0,0.0005726,120]
[379129063,1755151976264,-455.55,0.0005726,120]
[379129064,1755151976274,-2537.74,0.0005726,120]
[379129065,1755151976617,-2504.76,0.0005726,120]
[379129066,1755151976628,-4596.94,0.0005726,120]
[379129067,1755151976638,-7050.28,0.0005726,120]
[379129068,1755151976648,-4941.19,0.0005726,120]
[379129069,1755151976658,-6645.09,0.0005726,120]
[379129070,1755151976669,-1470.96,0.0005726,120]
[379129071,1755151976680,-12872.66,0.0005726,120]
[379129072,1755151976689,-2626.76,0.0005726,120]
[379129073,1755151976699,-400.0,0.0005726,120]
[379129074,1755151976709,-842.29,0.0005726,120]
[379129075,1755151976719,-2484.23,0.0005726,120]
[379129076,1755151976728,-677.46,0.0005726,120]
[379129077,1755151976738,-400.0,0.0005726,120]
[379129078,1755151976748,-400.0,0.0005726,120]
[379129079,1755151976757,-2137.56,0.0005726,120]
[379129080,1755151976767,-700.66,0.0005726,120]
[379129081,1755151976777,-716.28,0.0005726,120]
[379129082,1755151976788,-2993.9,0.0005726,120]
[379129083,1755151976799,-6351.49,0.0005726,120]
[379129084,1755151976810,-3596.26,0.0005726,120]
[379129085,1755151976821,-2925.64,0.0005726,120]
[379129086,1755151976831,-1168.62,0.0005726,120]
[379129087,1755151976842,-400.0,0.0005726,120]
[379129088,1755151976852,-3939.6,0.0005726,120]
[379129089,1755151976862,-400.0,0.0005726,120]
[379129090,1755151976871,-3937.39,0.0005726,120]
[379129091,1755151976881,-1061.38,0.0005726,120]
[379129092,1755151976891,-3506.43,0.0005726,120]
[379129093,1755151976900,-2712.52,0.0005726,120]
[379129094,1755151976909,-470.17,0.0005726,120]
[379129095,1755151976920,-711.43,0.0005726,120]
[379129096,1755151976930,-14736.38,0.0005726,120]
[379129097,1755151976940,-400.0,0.0005726,120]
[379129098,1755151976952,-4800.16,0.0005726,120]
[379129099,1755151976963,-8367.96,0.0005726,120]
[379129100,1755151976973,-921.63,0.0005726,120]
[379129101,1755151976982,-2077.74,0.0005726,120]
[379129102,1755151976992,-3443.78,0.0005726,120]
[379129103,1755151977002,-865.51,0.0005726,120]
[379129104,1755151977012,-2942.23,0.0005726,120]
[379129105,1755151977023,-1049.02,0.0005726,120]
[379129106,1755151977035,-1334.83,0.0005726,120]
[379129107,1755151977045,-607.39,0.0005726,120]
[379129108,1755151977055,-8231.79,0.0005726,120]
[379129109,1755151977065,-695.1,0.0005726,120]
[379129110,1755151977076,-400.0,0.0005726,120]
[379129111,1755151977094,-2532.79,0.0005726,120]
[379129112,1755151977105,-400.0,0.0005726,120]
[379129113,1755151977116,-2723.98,0.0005726,120]
[379129114,1755151977127,-744.6,0.0005726,120]
[379129115,1755151977138,-4409.46,0.0005726,120]
[379129116,1755151977148,-3418.49,0.0005726,120]
[379129117,1755151977158,-4037.29,0.0005726,120]
[379129118,1755151977170,-4195.01,0.0005726,120]
[379129119,1755151977180,-400.0,0.0005726,120]
[379129120,1755151977190,-400.0,0.0005726,120]
[379129121,1755151977200,-400.0,0.0005726,120]
[379129122,1755151977210,-545.91,0.0005726,120]
[379129123,1755151977220,-2283.95,0.0005726,120]
[379129124,1755151977229,-4900.95,0.0005726,120]
[379129125,1755151977239,-1999.15,0.0005726,120]
[379129126,1755151977248,-400.0,0.0005726,120]
[379129127,1755151977258,-400.0,0.0005726,120]
[379129128,1755151977268,-3909.03,0.0005726,120]
[379129129,1755151977278,-1532.89,0.0005726,120]
[379129130,1755151977288,-409.06,0.0005726,120]
[379129131,1755151977298,-400.0,0.0005726,120]
[379129132,1755151977308,-547.75847687,0.0005726,120]
[379129133,1755151977318,-400.0,0.0005726,120]
[379129134,1755151977328,-1318.43,0.0005726,120]
[379129135,1755151977338,-6094.57,0.0005726,120]
[379129136,1755151977347,-5253.86,0.0005726,120]
[379129137,1755151977357,-1418.89,0.0005726,120]
[379129138,1755151977367,-400.0,0.0005726,120]
[379129139,1755151977377,-20377.53,0.0005726,120]
[379129140,1755151977386,-536.35,0.0005726,120]
[379129141,1755151977396,-7791.38,0.0005726,120]
[379129142,1755151977406,-777.28,0.0005726,120]
[379129143,1755151977415,-400.0,0.0005726,120]
[379129144,1755151977426,-4524.24,0.0005726,120]
[379129145,1755151977437,-803.08,0.0005726,120]
[379129146,1755151977447,-400.0,0.0005726,120]
[379129147,1755151977458,-400.0,0.0005726,120]
[379129148,1755151977468,-400.0,0.0005726,120]
[379129149,1755151977478,-400.0,0.0005726,120]
[379129150,1755151977489,-400.0,0.0005726,120]
[379129151,1755151977499,-636.7,0.0005726,120]
[379129152,1755151977509,-6559.14,0.0005726,120]
[379129153,1755151977518,-7543.93,0.0005726,120]
[379129154,1755151977528,-3309.87,0.0005726,120]
[379129155,1755151977539,-400.0,0.0005726,120]
[379129156,1755151977548,-1839.95,0.0005726,120]
[379129157,1755151977558,-3366.95,0.0005726,120]
[379129158,1755151977567,-5994.36,0.0005726,120]
[379129159,1755151977577,-2152.61,0.0005726,120]
[379129160,1755151977587,-400.0,0.0005726,120]
[379129161,1755151977596,-1919.24,0.0005726,120]
[379129162,1755151977606,-617.55,0.0005726,120]
[379129163,1755151977617,-1316.43,0.0005726,120]
[379129164,1755151977627,-400.0,0.0005726,120]
[379129165,1755151977637,-2128.5,0.0005726,120]
[379129166,1755151977646,-400.0,0.0005726,120]
[379129167,1755151977656,-2371.16,0.0005726,120]
[379129168,1755151977667,-400.0,0.0005726,120]
[379129169,1755151977677,-3587.82,0.0005726,120]
[379129170,1755151977687,-1425.03,0.0005726,120]
[379129171,1755151977697,-7358.71,0.0005726,120]
[379129172,1755151977706,-1968.63,0.0005726,120]
[379129173,1755151977716,-6345.68,0.0005726,120]
[379129174,1755151977727,-1175.19,0.0005726,120]
[379129175,1755151977737,-400.0,0.0005726,120]
[379129176,1755151977746,-3111.21,0.0005726,120]
[379129177,1755151977756,-400.0,0.0005726,120]
[379129178,1755151977766,-646.46,0.0005726,120]
[379129179,1755151977775,-401.44,0.0005726,120]
[379129180,1755151977785,-400.0,0.0005726,120]
[379129181,1755151977794,-693.3,0.0005726,120]
[379129182,1755151977803,-2377.46,0.0005726,120]
[379129183,1755151977813,-940.0,0.0005726,120]
[379129184,1755151977822,-400.0,0.0005726,120]
[379129185,1755151977832,-517.35,0.0005726,120]
[379129186,1755151977842,-5602.35,0.0005726,120]
[379129187,1755151977851,-624.92,0.0005726,120]
[379129188,1755151977861,-3950.72,0.0005726,120]
[379129189,1755151977871,-4573.77,0.0005726,120]
[379129190,1755151977880,-400.0,0.0005726,120]
[379129191,1755151977889,-400.0,0.0005726,120]
[379129192,1755151977899,-652.5,0.0005726,120]
[379129193,1755151977909,-446.85103393,0.0005726,120]
[379129194,1755151977920,-400.0,0.0005726,120]
[379129195,1755151977931,-2054.25,0.0005726,120]
[379129196,1755151977941,-402.84393777,0.0005726,120]
[379129197,1755151977954,-400.0,0.0005726,120]
[379129198,1755151977964,-583.61,0.0005726,120]
[379129199,1755151977977,-11929.2,0.0005726,120]
[379129200,1755151977987,-5329.6,0.0005726,120]
[379129201,1755151977999,-400.0,0.0005726,120]
[379129202,1755151978009,-400.0,0.0005726,120]
[379129203,1755151978020,-448.76,0.0005726,120]
[379129204,1755151978030,-400.0,0.0005726,120]
[379129205,1755151978041,-400.0,0.0005726,120]
[379129206,1755151978052,-5074.18,0.0005726,120]
[379129207,1755151978062,-3617.89,0.0005726,120]
[379129208,1755151978071,-1615.63,0.0005726,120]
[379129209,1755151978081,-400.0,0.0005726,120]
[379129210,1755151978092,-769.03,0.0005726,120]
[379129211,1755151978105,-7493.39,0.0005726,120]
[379129212,1755151978115,-400.0,0.0005726,120]
[379129213,1755151978125,-400.0,0.0005726,120]
[379129214,1755151978136,-737.42,0.0005726,120]
[379129215,1755151978146,-400.0,0.0005726,120]
[379129216,1755151978158,-4803.32,0.0005726,120]
[379129217,1755151978169,-400.0,0.0005726,120]
[379129218,1755151978179,-471.48,0.0005726,120]
[379129219,1755151978190,-400.0,0.0005726,120]
[379129220,1755151978200,-533.6,0.0005726,120]
[379129221,1755151978210,-400.0,0.0005726,120]
[379129222,1755151978220,-400.0,0.0005726,120]
[379129223,1755151978234,-630.94,0.0005726,120]
[379129224,1755151978244,-9562.11,0.0005726,120]
[379129225,1755151978254,-810.43,0.0005726,120]
[379129226,1755151978264,-412.76,0.0005726,120]
[379129227,1755151978274,-400.0,0.0005726,120]
[379129228,1755151978283,-3374.23,0.0005726,120]
[379129229,1755151978293,-3424.61,0.0005726,120]
[379129230,1755151978303,-1022.07,0.0005726,120]
[379129231,1755151978313,-6827.99,0.0005726,120]
[379129232,1755151978323,-400.0,0.0005726,120]
[379129233,1755151978333,-5238.96,0.0005726,120]
[379129234,1755151978344,-1263.51,0.0005726,120]
[379129235,1755151978354,-3712.76,0.0005726,120]
[379129236,1755151978364,-5099.85,0.0005726,120]
[379129237,1755151978374,-12607.61,0.0005726,14]
[379129238,1755151978383,-400.0,0.0005726,120]
[379129239,1755151978393,-400.0,0.0005726,120]
[379129240,1755151978403,-452.63,0.0005726,120]
[379129241,1755151978412,-9461.59,0.0005726,120]
[379129242,1755151978423,-1280.0,0.0005726,120]
[379129243,1755151978433,-3336.58,0.0005726,120]
[379129244,1755151978443,-1440.53,0.0005726,120]
[379129245,1755151978453,-3572.12,0.0005726,120]
[379129246,1755151978462,-1037.13,0.0005726,120]
[379129247,1755151978472,-407.71451625,0.0005726,120]
[379129248,1755151978482,-400.0,0.0005726,120]
[379129249,1755151978492,-400.0,0.0005726,120]
[379129250,1755151978502,-2387.29,0.0005726,120]
[379129251,1755151978511,-645.37,0.0005726,120]
[379129252,1755151978521,-3470.66,0.0005726,120]
[379129253,1755151978532,-2302.92,0.0005726,120]
[379129254,1755151978542,-13098.21,0.0005726,120]
[379129255,1755151978552,-2443.69,0.0005726,120]
[379129256,1755151978562,-6861.07,0.0005726,120]
[379129257,1755151978572,-400.0,0.0005726,120]
[379129258,1755151978582,-400.0,0.0005726,120]
[379129259,1755151978591,-3620.51,0.0005726,120]
[379129260,1755151978599,-2042.69,0.0005726,120]
[379129261,1755151978609,-400.0,0.0005726,120]
[379129262,1755151978619,-775.24,0.0005726,120]
[379129263,1755151978629,-697.92,0.0005726,120]
[379129264,1755151978638,-400.0,0.0005726,120]
[379129265,1755151978647,-400.0,0.0005726,120]
[379129266,1755151978657,-400.0,0.0005726,120]
[379129267,1755151978666,-1558.59,0.0005726,120]
[379129268,1755151978678,-4330.88,0.0005726,120]
[379129269,1755151978687,-1879.63,0.0005726,120]
[379129270,1755151978695,-10954.8,0.0005726,120]
[379129271,1755151978704,-400.0,0.0005726,2]
[379129272,1755151978713,-400.0,0.0005726,120]
[379129273,1755151978723,-10795.64,0.0005726,120]
[379129274,1755151978732,-542.57,0.0005726,120]
[379129275,1755151978742,-1441.73,0.0005726,120]
[379129276,1755151978752,-400.0,0.0005726,120]
[379129277,1755151978761,-5005.36,0.0005726,120]
[379129278,1755151978770,-400.0,0.0005726,120]
[379129279,1755151978780,-400.0,0.0005726,120]
[379129280,1755151978790,-8104.07,0.0005726,120]
[379129281,1755151978800,-634.31,0.0005726,120]
[379129282,1755151978810,-400.0,0.0005726,120]
[379129283,1755151978819,-609.96,0.0005726,120]
[379129284,1755151978829,-831.88,0.0005726,120]
[379129285,1755151978839,-2164.47,0.0005726,120]
[379129286,1755151978849,-400.0,0.0005726,120]
[379129287,1755151978859,-673.2,0.0005726,2]
[379129288,1755151978868,-526.11,0.0005726,120]
[379129289,1755151978878,-400.0,0.0005726,120]
[379129290,1755151978887,-400.0,0.0005726,120]
[379129291,1755151978897,-5199.58,0.0005726,120]
[379129292,1755151978906,-400.0,0.0005726,120]
[379129293,1755151978916,-400.0,0.0005726,120]
[379129294,1755151978926,-2958.7,0.0005726,120]
[379129295,1755151978935,-2523.17,0.0005726,120]
[379129296,1755151978945,-8388.56,0.0005726,120]
[379129297,1755151978957,-400.0,0.0005726,120]
[379129298,1755151978968,-400.0,0.0005726,120]
[379129299,1755151978978,-404.09303978,0.0005726,120]
[379129300,1755151978988,-247.33,0.00057593,120]
[379129301,1755151978998,-169.82647868,0.00057655,3]
[379129302,1755151979007,-157.7616699,0.00057671,53]
[379129303,1755151979017,-2000.0,0.000577,90]
[379129304,1755151979028,-210.0,0.0005779,30]
[379129305,1755151979038,-696.1103173,0.0005796,2]
[379129306,1755151979048,-1206.3470087,0.0005796,2]
[379129307,1755151979057,-581.1535446,0.0005796,2]
[379129308,1755151979186,-1446.6976656,0.0005796,2]
[379129309,1755151979198,-5870.2001711,0.0005796,2]
[379129310,1755151979207,-400.0,0.0005799,120]
[379129311,1755151979217,-156.94,0.00058,120]
[379129312,1755151979226,-1088.0,0.00058,120]
[379129313,1755151979236,-500000.0,0.00058,120]
[379129314,1755151979245,-500000.0,0.00058,120]
[379129315,1755151979254,-500000.0,0.00058,120]
[379129316,1755151979263,-1000000.0,0.00058,120]
[379129317,1755151979273,-1288.51,0.00058082,120]
[379129318,1755151979282,-3935.8,0.00058082,120]
[379129319,1755151979292,-993.07,0.00058082,120]
[379129320,1755151979302,-275.0,0.00058082,120]
[379129321,1755151979311,-400.0,0.00058082,120]
[379129322,1755151979320,-400.0,0.00058082,120]
[379129323,1755151979330,-400.0,0.00058082,120]
[379129324,1755151979339,-400.0,0.00058082,120]
[379129325,1755151979349,-400.0,0.00058082,120]
[379129326,1755151979359,-400.0,0.00058082,120]
[379129327,1755151979368,-400.0,0.00058082,120]
[379129328,1755151979379,-400.0,0.00058082,120]
[379129329,1755151979388,-400.75829079,0.00058082,120]
[379129330,1755151979401,-400.0,0.00058082,120]
[379129331,1755151979411,-400.0,0.00058082,120]
[379129332,1755151979422,-400.0,0.00058082,120]
[379129333,1755151979431,-400.0,0.00058082,120]
[379129334,1755151979441,-403.40187655,0.00058082,120]
[379129335,1755151979450,-400.0,0.00058082,120]
[379129336,1755151979459,-400.0,0.00058082,120]
[379129337,1755151979468,-400.0,0.00058082,120]
[379129338,1755151979478,-1599.04,0.00058082,120]
[379129339,1755151979487,-400.0,0.00058082,120]
[379129340,1755151979496,-400.0,0.00058082,120]
[379129341,1755151979506,-400.0,0.00058082,120]
[379129342,1755151979515,-400.0,0.00058082,120]
[379129343,1755151979525,-400.0,0.00058082,120]
[379129344,1755151979534,-400.0,0.00058082,120]
[379129345,1755151979543,-400.0,0.00058082,120]
[379129346,1755151979552,-400.89,0.00058082,120]
[379129347,1755151979562,-462.34638441,0.00058082,120]
[379129348,1755151979571,-500.0,0.00058082,2]
[379129349,1755151979580,-400.0,0.00058082,120]
[379129350,1755151979589,-400.0,0.00058082,120]
[379129351,1755151979599,-1306.08,0.00058082,120]
[379129352,1755151979608,-400.0,0.00058082,120]
[379129353,1755151979617,-400.0,0.00058082,120]
[379129354,1755151979626,-1708.88,0.00058082,120]
[379129355,1755151979635,-400.0,0.00058082,120]
[379129356,1755151979644,-400.0,0.00058082,120]
[379129357,1755151979654,-400.0,0.00058082,120]
[379129358,1755151979663,-400.0,0.00058082,120]
[379129359,1755151979672,-1894.75,0.00058082,120]
[379129360,1755151979682,-3248.67,0.00058082,120]
[379129361,1755151979691,-400.0,0.00058082,120]
[379129362,1755151979701,-510.95,0.00058082,120]
[379129363,1755151979710,-684.44,0.00058082,120]
[379129364,1755151979720,-854.770045,0.00058082,120]
[379129365,1755151979729,-400.0,0.00058082,120]
[379129366,1755151979740,-710.57,0.00058082,120]
[379129367,1755151979751,-1049.79,0.00058082,120]
[379129368,1755151979762,-400.0,0.00058082,120]
[379129369,1755151979771,-1320.49,0.00058082,30]
[379129370,1755151979781,-400.0,0.00058082,120]
[379129371,1755151979791,-400.0,0.00058082,2]
[379129372,1755151979800,-941.38,0.00058082,120]